fUST/lending_fUST_20250630
["ID","MTS","AMOUNT","RATE_DAILY","PERIOD"]
[368576817,1751213450967,-711.68,0.00019218,2]
[368576818,1751213450977,-460.0,0.00019218,2]
[368576819,1751213450986,-770.46,0.00019218,2]
[368576820,1751213450995,-460.0,0.00019218,2]
[368576821,1751213451004,-460.0,0.00019218,2]
[368576822,1751213451013,-460.0,0.00019218,2]
[368576823,1751213451023,-3134.69,0.00019218,2]
[368576824,1751213451033,-579.16,0.00019218,2]
[368576825,1751213451043,-460.0,0.00019218,2]
[368576826,1751213451052,-460.0,0.00019218,2]
[368576827,1751213451062,-460.0,0.0001922,2]
[368576828,1751213451072,-460.0,0.0001922,2]
[368576829,1751213451082,-460.0,0.0001922,2]
[368576830,1751213451091,-460.0,0.0001922,2]
[368576831,1751213451101,-460.0,0.0001922,2]
[368576832,1751213451110,-460.0,0.00019222,2]
[368576833,1751213451120,-4547.62,0.00019222,2]
[368576834,1751213451129,-4813.95,0.00019222,2]
[368576835,1751213451139,-460.0,0.00019222,2]
[368576836,1751213451148,-990.53,0.00019222,2]
[368576837,1751213451159,-460.0,0.00019222,2]
[368576838,1751213451168,-460.0,0.00019222,2]
[368576839,1751213451177,-546.86,0.00019222,2]
[368576840,1751213451187,-460.0,0.00019222,2]
[368576841,1751213451197,-4925.02,0.00019222,2]
[368576842,1751213451206,-4462.53,0.00019222,2]
[368576843,1751213451216,-4832.15,0.00019222,2]
[368576844,1751213451225,-729.64,0.00019222,2]
[368576845,1751213451235,-460.0,0.00019222,2]
[368576846,1751213451244,-460.0,0.00019222,2]
[368576847,1751213451254,-2653.8,0.00019222,2]
[368576848,1751213451263,-460.0,0.00019222,2]
[368576849,1751213451272,-1050.32548147,0.0001923,2]
[368576850,1751213451281,-460.0,0.00019231,2]
[368576851,1751213451291,-460.0,0.00019231,2]
[368576852,1751213451300,-460.0,0.00019231,2]
[368576853,1751213451311,-232.56138905,0.00019231,2]
[368576854,1751213451321,-460.0,0.00019232,2]
[368576855,1751213451330,-460.0,0.00019232,2]
[368576856,1751213451339,-460.0,0.00019232,2]
[368576857,1751213451348,-460.0,0.00019232,2]
[368576858,1751213451357,-548.91516801,0.00019232,2]
[368576859,1751213451367,-460.0,0.00019232,2]
[368576860,1751213451377,-460.0,0.00019232,2]
[368576861,1751213451386,-238.97896341,0.00019232,2]
[368576862,1751213451395,-196.344,0.00019232,2]
[368576863,1751213451405,-707.53,0.00019232,2]
[368576864,1751213451415,-196.344,0.00019232,2]
[368576865,1751213451424,-792.53,0.00019232,2]
[368576866,1751213451434,-2414.73,0.00019232,2]
[368576867,1751213451443,-646.3,0.00019232,2]
[368576868,1751213451453,-151.0,0.00019232,2]
[368576869,1751213451463,-475.64,0.00019232,2]
[368576870,1751213451473,-460.0,0.00019232,2]
[368576871,1751213451482,-620.0,0.00019232,2]
[368576872,1751213451491,-1064.11,0.00019232,2]
[368576873,1751213451501,-460.0,0.00019232,2]
[368576874,1751213451510,-151.0,0.00019232,2]
[368576875,1751213451520,-1257.18,0.00019232,2]
[368576876,1751213451529,-238.611491,0.00019232,2]
[368576877,1751213451538,-238.611491,0.00019232,2]
[368576878,1751213451547,-460.0,0.00019232,2]
[368576879,1751213451557,-460.0,0.00019232,2]
[368576880,1751213451567,-460.0,0.00019232,2]
[368576881,1751213451577,-399.956926,0.00019232,2]
[368576882,1751213451586,-460.0,0.00019232,2]
[368576883,1751213451595,-399.956926,0.00019232,2]
[368576884,1751213451604,-997.24,0.00019232,2]
[368576885,1751213451613,-696.71,0.00019232,2]
[368576886,1751213451622,-460.0,0.00019232,2]
[368576887,1751213451632,-1514.83,0.00019232,2]
[368576888,1751213451641,-460.0,0.00019232,2]
[368576889,1751213451650,-460.0,0.00019232,2]
[368576890,1751213451660,-704.72,0.00019232,2]
[368576891,1751213451669,-460.0,0.00019232,2]
[368576892,1751213451678,-460.0,0.00019233,2]
[368576893,1751213451687,-460.0,0.00019233,2]
[368576894,1751213451697,-460.0,0.00019233,2]
[368576895,1751213451706,-460.0,0.00019233,2]
[368576896,1751213451828,-1715.34,0.00019233,2]
[368576897,1751213451852,-753.79,0.00019233,2]
[368576898,1751213451862,-594.48,0.00019233,2]
[368576899,1751213451872,-860.14,0.00019233,2]
[368576900,1751213451882,-460.0,0.00019233,2]
[368576901,1751213451894,-1152.83,0.00019233,2]
[368576902,1751213451903,-6011.46,0.00019233,2]
[368576903,1751213451912,-543.66,0.00019233,2]
[368576904,1751213451921,-460.0,0.00019234,2]
[368576905,1751213451931,-460.0,0.00019234,2]
[368576906,1751213451943,-460.0,0.00019234,2]
[368576907,1751213451952,-460.0,0.00019234,2]
[368576909,1751213451963,-460.0,0.00019237,2]
[368576910,1751213451974,-566.23,0.00019237,2]
[368576911,1751213451984,-460.0,0.00019237,2]
[368576912,1751213451995,-460.0,0.00019237,2]
[368576913,1751213452005,-460.0,0.00019237,2]
[368576914,1751213452015,-513.98,0.00019237,2]
[368576915,1751213452025,-497.57,0.00019237,2]
[368576916,1751213452036,-460.0,0.00019237,2]
[368576917,1751213452045,-460.0,0.00019237,2]
[368576918,1751213452055,-460.0,0.00019237,2]
[368576919,1751213452065,-460.0,0.00019237,2]
[368576920,1751213452075,-460.0,0.00019237,2]
[368576921,1751213452084,-638.1,0.00019237,2]
[368576922,1751213452094,-913.1,0.00019237,2]
[368576923,1751213452104,-460.0,0.00019237,2]
[368576924,1751213452113,-460.0,0.00019237,2]
[368576925,1751213452123,-472.55,0.00019237,2]
[368576926,1751213452132,-934.56,0.00019237,2]
[368576927,1751213452142,-150.88187167,0.00019237,2]
[368576928,1751213452152,-460.0,0.00019237,2]
[368576929,1751213452162,-460.0,0.00019237,2]
[368576930,1751213452171,-460.0,0.00019237,2]
[368576931,1751213452180,-994.93,0.00019237,2]
[368576932,1751213452190,-788.47,0.00019237,2]
[368576933,1751213452199,-535.69,0.00019237,2]
[368576934,1751213452208,-460.0,0.00019237,2]
[368576935,1751213452218,-720.09,0.00019237,2]
[368576936,1751213452227,-460.0,0.00019237,2]
[368576937,1751213452237,-732.67,0.00019237,2]
[368576938,1751213452246,-460.0,0.00019237,2]
[368576939,1751213452256,-460.0,0.00019237,2]
[368576940,1751213452266,-460.0,0.00019237,2]
[368576941,1751213452276,-151.0,0.00019238,2]
[368576942,1751213452285,-151.0,0.00019238,2]
[368576943,1751213452294,-3943.89,0.00019238,2]
[368576944,1751213452304,-749.97,0.00019238,2]
[368576945,1751213452316,-295.703095,0.00019238,2]
[368576946,1751213452326,-295.703095,0.00019238,2]
[368576947,1751213452336,-2273.88,0.00019238,2]
[368576948,1751213452346,-1592.72,0.00019238,2]
[368576949,1751213452355,-151.0,0.00019238,2]
[368576950,1751213452365,-151.0,0.00019238,2]
[368576951,1751213452375,-460.0,0.00019238,2]
[368576952,1751213452384,-1393.05,0.00019238,2]
[368576953,1751213452394,-6858.32,0.00019238,2]
[368576954,1751213452403,-2299.91,0.00019238,2]
[368576955,1751213452412,-1649.67,0.00019238,2]
[368576956,1751213452421,-460.0,0.00019238,2]
[368576957,1751213452431,-460.0,0.00019239,2]
[368576958,1751213452440,-460.0,0.00019239,2]
[368576959,1751213452449,-460.0,0.00019239,2]
[368576960,1751213452458,-460.0,0.00019239,2]
[368576961,1751213452468,-460.0,0.00019239,2]
[368576962,1751213452477,-460.0,0.00019239,2]
[368576963,1751213452486,-460.0,0.00019248,2]
[368576964,1751213452495,-151.0,0.00019248,2]
[368576965,1751213452505,-151.0,0.00019248,2]
[368576966,1751213452515,-151.0,0.00019248,2]
[368576967,1751213452524,-166.52976988,0.00019248,2]
[368576968,1751213452534,-954.05,0.00019248,2]
[368576969,1751213452543,-151.0,0.00019248,2]
[368576970,1751213452553,-151.0,0.00019248,2]
[368576971,1751213452562,-460.0,0.00019248,2]
[368576972,1751213452573,-460.0,0.00019248,2]
[368576973,1751213452583,-460.0,0.00019248,2]
[368576974,1751213452592,-844.34,0.00019248,2]
[368576975,1751213452602,-1863.26,0.00019248,2]
[368576976,1751213452611,-460.0,0.00019248,2]
[368576977,1751213452621,-1075.67,0.00019248,2]
[368576978,1751213452630,-320.60110058,0.00019248,2]
[368576979,1751213452640,-1321.87,0.00019248,2]
[368576980,1751213452649,-460.0,0.00019248,2]
[368576981,1751213452658,-2266.93,0.00019248,2]
[368576982,1751213452668,-1689.29,0.00019248,2]
[368576983,1751213452677,-460.0,0.00019248,2]
[368576984,1751213452686,-632.62,0.00019248,2]
[368576985,1751213452695,-460.0,0.00019248,2]
[368576986,1751213452704,-460.0,0.0001925,2]
[368576987,1751213452713,-2416.46,0.0001925,2]
[368576988,1751213452722,-460.0,0.0001925,2]
[368576989,1751213452731,-460.0,0.0001925,2]
[368576990,1751213452740,-460.0,0.0001925,2]
[368576991,1751213452750,-460.0,0.0001925,2]
[368576992,1751213452759,-151.0,0.000193,2]
[368576993,1751213452768,-6536.85938346,0.00019314,2]
[368576994,1751213452777,-100000.0,0.00019329,2]
[368576995,1751213452786,-1000.0,0.00019342,2]
[368576996,1751213452796,-960.0,0.00019342,2]
[368576997,1751213452805,-284.0,0.00019399,2]
[368576998,1751213452815,-151.0,0.000194,2]
[368576999,1751213452824,-284.0,0.00019418,2]
[368577000,1751213452835,-1000.0,0.0001943,2]
[368577001,1751213452844,-519.92570226,0.0001943,2]
[368577002,1751213452854,-500.84850324,0.0001943,2]
[368577003,1751213452864,-930.50900453,0.0001943,2]
[368577004,1751213452873,-500.0,0.0001943,2]
[368577005,1751213452882,-501.72407384,0.0001943,2]
[368577006,1751213452894,-1000.0,0.0001943,2]
[368577007,1751213452904,-1000.0,0.0001943,2]
[368577008,1751213452913,-1000.0,0.0001943,2]
[368577009,1751213452922,-1000.0,0.0001943,2]
[368577010,1751213452932,-711.68,0.00019492,2]
[368577011,1751213452943,-492.02718125,0.00019492,2]
[368577012,1751213452953,-770.46,0.00019492,2]
[368577013,1751213452962,-460.0,0.00019492,2]
[368577014,1751213452973,-460.0,0.00019492,2]
[368577015,1751213452982,-3134.69,0.00019492,2]
[368577016,1751213452992,-579.16,0.00019492,2]
[368577017,1751213453001,-460.0,0.00019492,2]
[368577018,1751213453010,-460.0,0.00019492,2]
[368577019,1751213453019,-284.0,0.00019494,2]
[368577020,1751213453029,-460.0,0.00019494,2]
[368577021,1751213453038,-460.0,0.00019494,2]
[368577022,1751213453049,-460.0,0.00019494,2]
[368577023,1751213453059,-460.0,0.00019496,2]
[368577024,1751213453069,-4547.62,0.00019496,2]
[368577025,1751213453078,-4813.95,0.00019496,2]
[368577026,1751213453087,-460.0,0.00019496,2]
[368577027,1751213453097,-990.53,0.00019496,2]
[368577028,1751213453106,-460.0,0.00019496,2]
[368577029,1751213453115,-460.0,0.00019496,2]
[368577030,1751213453125,-546.86,0.00019496,2]
[368577031,1751213453136,-460.0,0.00019496,2]
[368577032,1751213453150,-4925.02,0.00019496,2]
[368577033,1751213453159,-4462.53,0.00019496,2]
[368577034,1751213453169,-4832.15,0.00019496,2]
[368577035,1751213453178,-729.64,0.00019496,2]
[368577036,1751213453188,-460.0,0.00019496,2]
[368577037,1751213453197,-460.0,0.00019496,2]
[368577038,1751213453207,-2653.8,0.00019496,2]
[368577039,1751213453216,-460.0,0.00019496,2]
[368577040,1751213453225,-460.0,0.00019505,2]
[368577041,1751213453234,-460.0,0.00019505,2]
[368577042,1751213453244,-460.0,0.00019505,2]
[368577043,1751213453255,-460.0,0.00019506,2]
[368577044,1751213453264,-460.0,0.00019506,2]
[368577045,1751213453273,-460.0,0.00019506,2]
[368577046,1751213453283,-460.0,0.00019506,2]
[368577047,1751213453292,-460.0,0.00019506,2]
[368577048,1751213453300,-151.0,0.00019506,2]
[368577049,1751213453310,-151.0,0.00019506,2]
[368577050,1751213453320,-151.0,0.00019506,2]
[368577051,1751213453329,-151.0,0.00019506,2]
[368577052,1751213453338,-196.344,0.00019506,2]
[368577053,1751213453347,-707.53,0.00019506,2]
[368577054,1751213453356,-196.344,0.00019506,2]
[368577055,1751213453366,-792.53,0.00019506,2]
[368577056,1751213453375,-2414.73,0.00019506,2]
[368577057,1751213453385,-646.3,0.00019506,2]
[368577058,1751213453395,-151.0,0.00019506,2]
[368577059,1751213453404,-475.64,0.00019506,2]
[368577060,1751213453414,-460.0,0.00019506,2]
[368577061,1751213453423,-371.228903,0.00019506,2]
[368577062,1751213453432,-371.228903,0.00019506,2]
[368577063,1751213453442,-620.0,0.00019506,2]
[368577064,1751213453451,-1064.11,0.00019506,2]
[368577065,1751213453461,-460.0,0.00019506,2]
[368577066,1751213453470,-1257.18,0.00019506,2]
[368577067,1751213453479,-238.611491,0.00019506,2]
[368577068,1751213453489,-238.611491,0.00019506,2]
[368577069,1751213453498,-151.0,0.00019506,2]
[368577070,1751213453507,-323.94465814,0.00019506,2]
[368577071,1751213453518,-460.0,0.00019506,2]
[368577072,1751213453528,-460.0,0.00019506,2]
[368577073,1751213453538,-399.956926,0.00019506,2]
[368577074,1751213453548,-460.0,0.00019506,2]
[368577075,1751213453558,-399.956926,0.00019506,2]
[368577076,1751213453569,-997.24,0.00019506,2]
[368577077,1751213453579,-696.71,0.00019506,2]
[368577078,1751213453589,-460.0,0.00019506,2]
[368577079,1751213453598,-1514.83,0.00019506,2]
[368577080,1751213453607,-460.0,0.00019506,2]
[368577081,1751213453617,-460.0,0.00019506,2]
[368577082,1751213453627,-704.72,0.00019506,2]
[368577083,1751213453636,-460.0,0.00019507,2]
[368577084,1751213453645,-222.271437,0.00019507,2]
[368577085,1751213453655,-222.271437,0.00019507,2]
[368577086,1751213453664,-151.0,0.00019507,2]
[368577087,1751213453673,-151.0,0.00019507,2]
[368577088,1751213453682,-151.0,0.00019507,2]
[368577089,1751213453692,-460.0,0.00019507,2]
[368577090,1751213453701,-460.0,0.00019507,2]
[368577091,1751213453710,-1715.34,0.00019507,2]
[368577092,1751213453719,-753.79,0.00019507,2]
[368577094,1751213453729,-594.48,0.00019507,2]
[368577095,1751213453738,-860.14,0.00019507,2]
[368577096,1751213453748,-460.0,0.00019507,2]
[368577097,1751213453757,-1152.83,0.00019507,2]
[368577098,1751213453767,-6011.46,0.00019507,2]
[368577099,1751213453778,-543.66,0.00019507,2]
[368577100,1751213453787,-460.0,0.00019508,2]
[368577101,1751213453797,-460.0,0.00019508,2]
[368577102,1751213453806,-363.68026919,0.00019508,2]
[368577103,1751213453816,-460.0,0.00019508,2]
[368577104,1751213453826,-284.0,0.0001951,2]
[368577105,1751213453835,-566.23,0.00019511,2]
[368577106,1751213453845,-460.0,0.00019511,2]
[368577107,1751213453854,-460.0,0.00019511,2]
[368577108,1751213453864,-460.0,0.00019511,2]
[368577109,1751213453874,-513.98,0.00019511,2]
[368577110,1751213453883,-497.57,0.00019511,2]
[368577111,1751213453896,-460.0,0.00019511,2]
[368577112,1751213453906,-460.0,0.00019511,2]
[368577113,1751213453915,-460.0,0.00019511,2]
[368577114,1751213453924,-460.0,0.00019511,2]
[368577115,1751213453934,-167.42,0.00019511,2]
[368577116,1751213453943,-638.1,0.00019511,2]
[368577117,1751213453953,-913.1,0.00019511,2]
[368577118,1751213453962,-460.0,0.00019511,2]
[368577119,1751213453972,-460.0,0.00019511,2]
[368577120,1751213453981,-472.55,0.00019511,2]
[368577121,1751213453991,-934.56,0.00019511,2]
[368577122,1751213454001,-460.0,0.00019511,2]
[368577123,1751213454010,-460.0,0.00019511,2]
[368577124,1751213454019,-460.0,0.00019511,2]
[368577125,1751213454028,-994.93,0.00019511,2]
[368577126,1751213454038,-788.47,0.00019511,2]
[368577127,1751213454047,-535.69,0.00019511,2]
[368577128,1751213454056,-460.0,0.00019511,2]
[368577129,1751213454066,-720.09,0.00019511,2]
[368577130,1751213454076,-460.0,0.00019511,2]
[368577131,1751213454085,-732.67,0.00019511,2]
[368577132,1751213454094,-270.10301015,0.00019511,2]
[368577133,1751213454104,-460.0,0.00019511,2]
[368577134,1751213454113,-460.0,0.00019511,2]
[368577135,1751213454122,-3943.89,0.00019512,2]
[368577136,1751213454132,-749.97,0.00019512,2]
[368577137,1751213454141,-2273.88,0.00019512,2]
[368577138,1751213454150,-1592.72,0.00019512,2]
[368577139,1751213454160,-460.0,0.00019512,2]
[368577140,1751213454169,-1393.05,0.00019512,2]
[368577141,1751213454178,-6858.32,0.00019512,2]
[368577142,1751213454187,-2299.91,0.00019512,2]
[368577143,1751213454197,-1649.67,0.00019512,2]
[368577144,1751213454206,-312.66277191,0.00019512,2]
[368577145,1751213454215,-460.0,0.00019513,2]
[368577146,1751213454225,-460.0,0.00019513,2]
[368577147,1751213454234,-460.0,0.00019513,2]
[368577148,1751213454243,-460.0,0.00019513,2]
[368577149,1751213454253,-460.0,0.00019513,2]
[368577150,1751213454262,-460.0,0.00019513,2]
[368577151,1751213454272,-151.0,0.00019514,2]
[368577152,1751213454281,-151.0,0.00019514,2]
[368577153,1751213454291,-151.0,0.00019514,2]
[368577154,1751213454300,-151.0,0.00019514,2]
[368577155,1751213454310,-151.0,0.00019514,2]
[368577156,1751213454320,-151.0,0.00019514,2]
[368577157,1751213454329,-295.703095,0.00019514,2]
[368577158,1751213454338,-295.703095,0.00019514,2]
[368577159,1751213454348,-151.0,0.00019514,2]
[368577160,1751213454357,-151.0,0.00019514,2]
[368577161,1751213454366,-6536.85938346,0.00019521,2]
[368577162,1751213454376,-460.0,0.00019522,2]
[368577163,1751213454385,-559.454528,0.00019522,2]
[368577164,1751213454395,-559.454528,0.00019522,2]
[368577165,1751213454404,-954.05,0.00019522,2]
[368577166,1751213454413,-460.0,0.00019522,2]
[368577167,1751213454422,-460.0,0.00019522,2]
[368577168,1751213454432,-844.34,0.00019522,2]
[368577169,1751213454442,-1863.26,0.00019522,2]
[368577170,1751213454452,-460.0,0.00019522,2]
[368577171,1751213454461,-1075.67,0.00019522,2]
[368577172,1751213454470,-1321.87,0.00019522,2]
[368577173,1751213454480,-460.0,0.00019522,2]
[368577174,1751213454489,-2266.93,0.00019522,2]
[368577175,1751213454499,-1689.29,0.00019522,2]
[368577176,1751213454508,-460.0,0.00019522,2]
[368577177,1751213454518,-632.62,0.00019522,2]
[368577178,1751213454527,-460.0,0.00019522,2]
[368577179,1751213454536,-460.0,0.00019524,2]
[368577180,1751213454546,-2416.46,0.00019524,2]
[368577181,1751213454555,-460.0,0.00019524,2]
[368577182,1751213454564,-460.0,0.00019524,2]
[368577183,1751213454575,-460.0,0.00019524,2]
[368577184,1751213454584,-460.0,0.00019524,2]
[368577185,1751213454714,-503.76574773,0.00019527,2]
[368577186,1751213454725,-1000.0,0.00019527,2]
[368577187,1751213454735,-5000.0,0.0001953,2]
[368577188,1751213454745,-284.0,0.00019532,2]
[368577189,1751213454754,-1000.0,0.00019533,2]
[368577190,1751213454764,-157.14764055,0.00019555,2]
[368577191,1751213454774,-153.598198,0.00019567,2]
[368577192,1751213454783,-151.0,0.00019567,2]
[368577193,1751213454792,-151.0,0.00019567,2]
[368577194,1751213454802,-151.0,0.00019567,2]
[368577195,1751213454811,-151.0,0.00019568,2]
[368577196,1751213454821,-151.0,0.00019568,2]
[368577197,1751213454830,-151.0,0.00019568,2]
[368577198,1751213454840,-151.0,0.00019568,2]
[368577199,1751213454850,-531.97906164,0.00019568,2]
[368577200,1751213454859,-1506.18386578,0.00019568,2]
[368577201,1751213454869,-1507.50882752,0.00019568,2]
[368577202,1751213454878,-500.0,0.00019568,2]
[368577203,1751213454888,-825.30533255,0.00019568,2]
[368577204,1751213454900,-1500.0,0.00019568,2]
[368577205,1751213454910,-1500.0,0.00019568,2]
[368577206,1751213454919,-1500.0,0.00019568,2]
[368577207,1751213454928,-500.90268572,0.00019568,2]
[368577208,1751213454939,-1500.0,0.00019568,2]
[368577209,1751213454948,-207.33486677,0.00019568,2]
[368577210,1751213454958,-1500.0,0.00019568,2]
[368577211,1751213454970,-6536.85938346,0.00019728,2]
[368577212,1751213454980,-711.68,0.00019766,2]
[368577213,1751213454989,-770.46,0.00019766,2]
[368577214,1751213454999,-460.0,0.00019766,2]
[368577215,1751213455008,-460.0,0.00019766,2]
[368577216,1751213455018,-3134.69,0.00019766,2]
[368577217,1751213455027,-579.16,0.00019766,2]
[368577218,1751213455037,-460.0,0.00019766,2]
[368577219,1751213455046,-460.0,0.00019766,2]
[368577220,1751213455056,-460.0,0.00019768,2]
[368577221,1751213455068,-460.0,0.00019768,2]
[368577222,1751213455078,-1889.0,0.00019769,3]
[368577223,1751213455087,-6286.02,0.00019769,3]
[368577224,1751213455097,-4506.96,0.00019769,3]
[368577225,1751213455107,-4641.62,0.00019769,3]
[368577226,1751213455116,-2320.82,0.00019769,3]
[368577227,1751213455127,-1973.1,0.00019769,3]
[368577228,1751213455137,-986.54,0.00019769,3]
[368577229,1751213455146,-493.28,0.00019769,3]
[368577230,1751213455155,-767.88,0.00019769,3]
[368577231,1751213455165,-213.82031328,0.0001977,3]
[368577232,1751213455175,-460.0,0.0001977,2]
[368577233,1751213455185,-4547.62,0.0001977,2]
[368577234,1751213455195,-4813.95,0.0001977,2]
[368577235,1751213455205,-460.0,0.0001977,2]
[368577236,1751213455214,-990.53,0.0001977,2]
[368577237,1751213455224,-460.0,0.0001977,2]
[368577238,1751213455234,-12567.05932091,0.0001977,3]
[368577239,1751213455243,-460.0,0.0001977,2]
[368577240,1751213455253,-546.86,0.0001977,2]
[368577241,1751213455262,-460.0,0.0001977,2]
[368577242,1751213455272,-4925.02,0.0001977,2]
[368577243,1751213455282,-4462.53,0.0001977,2]
[368577244,1751213455292,-4832.15,0.0001977,2]
[368577245,1751213455301,-729.64,0.0001977,2]
[368577246,1751213455311,-460.0,0.0001977,2]
[368577247,1751213455322,-460.0,0.0001977,2]
[368577248,1751213455331,-2653.8,0.0001977,2]
[368577249,1751213455341,-460.0,0.0001977,2]
[368577250,1751213455351,-383.94,0.00019771,3]
[368577251,1751213455360,-198.34,0.00019779,2]
[368577252,1751213455370,-460.0,0.00019779,2]
[368577253,1751213455380,-236.050943,0.0001978,2]
[368577254,1751213455389,-236.050943,0.0001978,2]
[368577256,1751213455398,-460.0,0.0001978,2]
[368577258,1751213455407,-460.0,0.0001978,2]
[368577260,1751213455417,-707.53,0.0001978,2]
[368577262,1751213455426,-792.53,0.0001978,2]
[368577263,1751213455436,-2414.73,0.0001978,2]
[368577264,1751213455445,-646.3,0.0001978,2]
[368577265,1751213455454,-475.64,0.0001978,2]
[368577266,1751213455464,-460.0,0.0001978,2]
[368577267,1751213455473,-620.0,0.0001978,2]
[368577268,1751213455482,-1064.11,0.0001978,2]
[368577269,1751213455491,-460.0,0.0001978,2]
[368577270,1751213455501,-1257.18,0.0001978,2]
[368577271,1751213455510,-460.0,0.0001978,2]
[368577272,1751213455519,-460.0,0.0001978,2]
[368577273,1751213455532,-460.0,0.0001978,2]
[368577274,1751213455542,-997.24,0.0001978,2]
[368577275,1751213455551,-696.71,0.0001978,2]
[368577276,1751213455561,-460.0,0.0001978,2]
[368577277,1751213455571,-1514.83,0.0001978,2]
[368577278,1751213455581,-460.0,0.0001978,2]
[368577279,1751213455590,-460.0,0.0001978,2]
[368577280,1751213455600,-704.72,0.0001978,2]
[368577281,1751213455610,-383.12,0.00019781,2]
[368577282,1751213455619,-460.0,0.00019781,2]
[368577283,1751213455629,-460.0,0.00019781,2]
[368577284,1751213455639,-1715.34,0.00019781,2]
[368577285,1751213455648,-753.79,0.00019781,2]
[368577286,1751213455658,-594.48,0.00019781,2]
[368577287,1751213455668,-860.14,0.00019781,2]
[368577288,1751213455677,-460.0,0.00019781,2]
[368577289,1751213455687,-1152.83,0.00019781,2]
[368577290,1751213455696,-6011.46,0.00019781,2]
[368577291,1751213455705,-543.66,0.00019781,2]
[368577292,1751213455715,-460.0,0.00019782,2]
[368577293,1751213455724,-460.0,0.00019782,2]
[368577294,1751213455733,-460.0,0.00019782,2]
[368577295,1751213455743,-566.23,0.00019785,2]
[368577296,1751213455752,-460.0,0.00019785,2]
[368577297,1751213455761,-460.0,0.00019785,2]
[368577298,1751213455770,-460.0,0.00019785,2]
[368577299,1751213455779,-513.98,0.00019785,2]
[368577300,1751213455789,-497.57,0.00019785,2]
[368577301,1751213455798,-460.0,0.00019785,2]
[368577302,1751213455807,-460.0,0.00019785,2]
[368577303,1751213455818,-460.0,0.00019785,2]
[368577304,1751213455828,-638.1,0.00019785,2]
[368577305,1751213455837,-913.1,0.00019785,2]
[368577306,1751213455847,-460.0,0.00019785,2]
[368577307,1751213455856,-472.55,0.00019785,2]
[368577308,1751213455866,-934.56,0.00019785,2]
[368577309,1751213455875,-460.0,0.00019785,2]
[368577310,1751213455885,-460.0,0.00019785,2]
[368577311,1751213455897,-358.39588459,0.00019785,2]
[368577312,1751213455906,-994.93,0.00019785,2]
[368577313,1751213455916,-788.47,0.00019785,2]
[368577314,1751213455926,-535.69,0.00019785,2]
[368577315,1751213455935,-460.0,0.00019785,2]
[368577316,1751213455945,-720.09,0.00019785,2]
[368577317,1751213455955,-460.0,0.00019785,2]
[368577318,1751213455964,-732.67,0.00019785,2]
[368577319,1751213455974,-460.0,0.00019785,2]
[368577320,1751213455985,-460.0,0.00019785,2]
[368577321,1751213455996,-3943.89,0.00019786,2]
[368577322,1751213456006,-749.97,0.00019786,2]